fUSD/lending_fUSD_20240428
["ID","MTS","AMOUNT","RATE_DAILY","PERIOD"]
[60494,1714333884913,-164.38530258,0.00012602,2]
[60495,1714333884923,-500.0,0.00012602,2]
[60496,1714333884932,-500.0,0.00012602,2]
[60497,1714333884941,-634.81,0.00012602,2]
[60498,1714333884952,-1130.44,0.00012602,2]
[60499,1714333884961,-500.0,0.00012602,2]
[60501,1714333884980,-594.1,0.00012602,2]
[60502,1714333884989,-500.0,0.00012602,2]
[60503,1714333884998,-500.0,0.00012602,2]
[60505,1714333885017,-500.0,0.00012602,2]
[60507,1714333885038,-500.0,0.00012602,2]
[60509,1714333885057,-500.0,0.00012602,2]
[60511,1714333885076,-500.0,0.00012602,2]
[60513,1714333885096,-841.44,0.00012602,2]
[60515,1714333885116,-500.0,0.00012602,2]
[60517,1714333885134,-643.85,0.00012602,2]
[60519,1714333885153,-500.0,0.00012602,2]
[60521,1714333885172,-1510.64,0.00012602,2]
[60523,1714333885191,-7836.77,0.00012602,2]
[60525,1714333885212,-2120.38,0.00012602,2]
[60527,1714333885231,-3738.06,0.00012602,2]
[60529,1714333885249,-500.0,0.00012602,2]
[60531,1714333885267,-930.99,0.00012602,2]
[60533,1714333885285,-500.0,0.00012602,2]
[60535,1714333885304,-552.44,0.00012602,2]
[60537,1714333885322,-500.0,0.00012602,2]
[60539,1714333885341,-500.0,0.00012602,2]
[60541,1714333885360,-500.0,0.00012602,2]
[60543,1714333885378,-500.0,0.00012602,2]
[60545,1714333885397,-669.74,0.00012602,2]
[60547,1714333885416,-439.44,0.00012602,2]
[60548,1714333885425,-500.0,0.00012602,2]
[60549,1714333885435,-500.0,0.00012602,2]
[60550,1714333885444,-557.3,0.00012602,2]
[60551,1714333885454,-2438.98,0.00012602,2]
[60552,1714333885463,-500.0,0.00012602,2]
[60553,1714333885473,-500.0,0.00012602,2]
[60554,1714333885482,-500.0,0.00012602,2]
[60555,1714333885491,-3234.99,0.00012602,2]
[60556,1714333885500,-1163.73,0.00012602,2]
[60557,1714333885509,-500.0,0.00012602,2]
[60559,1714333885528,-1439.84,0.00012602,2]
[60561,1714333885548,-2793.67,0.00012602,2]
[60563,1714333885566,-500.0,0.00012602,2]
[60565,1714333885584,-500.0,0.00012602,2]
[60567,1714333885603,-570.30230491,0.00012602,2]
[60569,1714333885622,-3274.87,0.00012602,2]
[60571,1714333885641,-1149.81,0.00012602,2]
[60573,1714333885660,-500.0,0.00012602,2]
[60575,1714333885679,-500.0,0.00012602,2]
[60577,1714333885700,-935.36,0.00012602,2]
[60579,1714333885720,-500.0,0.00012602,2]
[60581,1714333885739,-500.0,0.00012602,2]
[60583,1714333885758,-1295.23,0.00012602,2]
[60585,1714333885777,-1020.65,0.00012602,2]
[60587,1714333885797,-500.0,0.00012602,2]
[60589,1714333885815,-500.0,0.00012602,2]
[60591,1714333885834,-500.0,0.00012602,2]
[60593,1714333885852,-500.0,0.00012602,2]
[60595,1714333885871,-500.0,0.00012602,2]
[60597,1714333885889,-500.0,0.00012602,2]
[60599,1714333885908,-877.73,0.00012602,2]
[60601,1714333885927,-500.0,0.00012602,2]
[60603,1714333885947,-500.0,0.00012602,2]
[60605,1714333885967,-500.0,0.00012602,2]
[60606,1714333885976,-500.0,0.00012602,2]
[60607,1714333885985,-1200.84,0.00012602,2]
[60609,1714333886005,-736.19,0.00012602,2]
[60611,1714333886024,-1078.64,0.00012602,2]
[60613,1714333886046,-500.0,0.00012602,2]
[60615,1714333886065,-660.63,0.00012602,2]
[60616,1714333886074,-1394.6,0.00012602,2]
[60617,1714333886084,-3293.48,0.00012602,2]
[60618,1714333886094,-500.0,0.00012602,2]
[60619,1714333886104,-500.0,0.00012602,2]
[60620,1714333886114,-1383.26,0.00012602,2]
[60621,1714333886125,-666.21,0.00012602,2]
[60622,1714333886135,-1038.55,0.00012602,2]
[60623,1714333886145,-582.9,0.00012602,2]
[60624,1714333886155,-2363.73,0.00012602,2]
[60625,1714333886164,-500.0,0.00012602,2]
[60626,1714333886174,-500.0,0.00012602,2]
[60627,1714333886183,-1482.37,0.00012602,2]
[60629,1714333886201,-635.98,0.00012602,2]
[60630,1714333886211,-519.27,0.00012602,2]
[60631,1714333886220,-1107.0,0.00012602,2]
[60632,1714333886229,-802.45,0.00012602,2]
[60633,1714333886239,-500.0,0.00012602,2]
[60634,1714333886248,-500.0,0.00012602,2]
[60635,1714333886257,-1887.52,0.00012602,2]
[60636,1714333886266,-500.0,0.00012602,2]
[60637,1714333886275,-500.0,0.00012602,2]
[60638,1714333886285,-500.0,0.00012602,2]
[60639,1714333886293,-500.0,0.00012602,2]
[60640,1714333886303,-500.0,0.00012602,2]
[60641,1714333886312,-2646.6,0.00012602,2]
[60642,1714333886322,-500.0,0.00012602,2]
[60643,1714333886331,-1312.38,0.00012602,2]
[60644,1714333886341,-500.0,0.00012602,2]
[60645,1714333886350,-2191.19,0.00012602,2]
[60646,1714333886360,-500.0,0.00012602,2]
[60647,1714333886369,-2890.81,0.00012602,2]
[60648,1714333886378,-1910.63,0.00012602,2]
[60649,1714333886388,-500.0,0.00012602,2]
[60650,1714333886397,-1435.69,0.00012602,2]
[60651,1714333886408,-1377.83,0.00012602,2]
[60652,1714333886418,-500.0,0.00012602,2]
[60653,1714333886427,-500.0,0.00012602,2]
[60654,1714333886436,-500.0,0.00012602,2]
[60655,1714333886445,-814.52,0.00012602,2]
[60656,1714333886454,-877.24,0.00012602,2]
[60657,1714333886463,-500.0,0.00012602,2]
[60658,1714333886473,-2530.69,0.00012602,2]
[60659,1714333886482,-500.0,0.00012602,2]
[60660,1714333886491,-500.0,0.00012602,2]
[60661,1714333886501,-621.4,0.00012602,2]
[60662,1714333886511,-500.0,0.00012602,2]
[60663,1714333886520,-500.0,0.00012602,2]
[60664,1714333886530,-2915.48,0.00012602,2]
[60665,1714333886538,-1278.3,0.00012602,2]
[60666,1714333886548,-500.0,0.00012602,2]
[60667,1714333886557,-1146.85,0.00012602,2]
[60668,1714333886566,-500.0,0.00012602,2]
[60669,1714333886576,-500.0,0.00012602,2]
[60670,1714333886585,-500.0,0.00012602,2]
[60671,1714333886594,-763.84,0.00012602,2]
[60672,1714333886603,-3171.22,0.00012602,2]
[60673,1714333886614,-630.5,0.00012602,2]
[60674,1714333886623,-2674.38,0.00012602,2]
[60675,1714333886633,-500.0,0.00012602,2]
[60676,1714333886643,-2017.39,0.00012602,2]
[60677,1714333886653,-500.0,0.00012602,2]
[60678,1714333886663,-500.0,0.00012602,2]
[60679,1714333886673,-534.56,0.00012602,2]
[60680,1714333886683,-856.24,0.00012602,2]
[60681,1714333886692,-500.0,0.00012602,2]
[60682,1714333886702,-500.0,0.00012602,2]
[60683,1714333886711,-500.0,0.00012602,2]
[60684,1714333886720,-500.0,0.00012602,2]
[60685,1714333886730,-500.0,0.00012602,2]
[60686,1714333886739,-500.0,0.00012602,2]
[60687,1714333886748,-500.0,0.00012602,2]
[60688,1714333886758,-500.0,0.00012602,2]
[60689,1714333886768,-1121.09,0.00012602,2]
[60690,1714333886777,-978.42,0.00012602,2]
[60691,1714333886786,-657.57,0.00012602,2]
[60692,1714333886795,-500.0,0.00012602,2]
[60693,1714333886805,-500.0,0.00012602,2]
[60694,1714333886814,-8320.09,0.00012602,2]
[60695,1714333886824,-908.28,0.00012602,2]
[60696,1714333886834,-532.07,0.00012602,2]
[60697,1714333886844,-500.0,0.00012602,2]
[60698,1714333886855,-500.0,0.00012602,2]
[60699,1714333886864,-509.22,0.00012602,2]
[60700,1714333886875,-500.0,0.00012602,2]
[60701,1714333886884,-647.31,0.00012602,2]
[60702,1714333886894,-500.0,0.00012602,2]
[60703,1714333886904,-914.72,0.00012602,2]
[60704,1714333886914,-500.0,0.00012602,2]
[60705,1714333886924,-500.0,0.00012602,2]
[60706,1714333886934,-3853.58,0.00012602,2]
[60707,1714333886943,-942.92,0.00012602,2]
[60708,1714333886954,-673.74,0.00012602,2]
[60709,1714333886963,-500.0,0.00012602,2]
[60710,1714333886972,-705.71,0.00012602,2]
[60711,1714333886981,-150.0,0.0001271,3]
[60712,1714333886990,-1070.50799097,0.00012875,3]
[60713,1714333887000,-500.0,0.00012876,2]
[60714,1714333887009,-500.0,0.00012876,2]
[60715,1714333887019,-500.0,0.00012876,2]
[60716,1714333887029,-500.0,0.00012876,2]
[60717,1714333887041,-500.0,0.00012876,2]
[60718,1714333887050,-448.55,0.00012876,2]
[60719,1714333887060,-196.92,0.00012876,2]
[60720,1714333887069,-607.36,0.00012876,2]
[60721,1714333887079,-500.0,0.00012876,2]
[60722,1714333887089,-500.0,0.00012876,2]
[60723,1714333887099,-202.18741838,0.00012876,2]
[60724,1714333887110,-218.93,0.00012876,2]
[60725,1714333887120,-500.0,0.00012876,2]
[60726,1714333887129,-500.0,0.00012876,2]
[60727,1714333887139,-500.0,0.00012876,2]
[60728,1714333887149,-500.0,0.00012876,2]
[60729,1714333887158,-500.0,0.00012876,2]
[60730,1714333887168,-500.0,0.00012876,2]
[60731,1714333887178,-500.0,0.00012876,2]
[60732,1714333887187,-500.0,0.00012876,2]
[60733,1714333887196,-500.0,0.00012876,2]
[60734,1714333887206,-500.0,0.00012876,2]
[60735,1714333887216,-500.0,0.00012876,2]
[60736,1714333887225,-500.0,0.00012876,2]
[60737,1714333887235,-500.0,0.00012876,2]
[60738,1714333887244,-589.26,0.00012876,2]
[60739,1714333887254,-500.0,0.00012876,2]
[60740,1714333887263,-500.0,0.00012876,2]
[60741,1714333887273,-500.0,0.00012876,2]
[60742,1714333887282,-500.0,0.00012876,2]
[60743,1714333887293,-500.0,0.00012876,2]
[60744,1714333887302,-500.0,0.00012876,2]
[60745,1714333887312,-500.0,0.00012876,2]
[60746,1714333887321,-500.0,0.00012876,2]
[60747,1714333887330,-500.0,0.00012876,2]
[60748,1714333887339,-500.0,0.00012876,2]
[60749,1714333887348,-500.0,0.00012876,2]
[60750,1714333887358,-500.0,0.00012876,2]
[60751,1714333887368,-500.0,0.00012876,2]
[60752,1714333887377,-500.0,0.00012876,2]
[60753,1714333887386,-500.0,0.00012876,2]
[60754,1714333887396,-500.0,0.00012876,2]
[60755,1714333887406,-500.0,0.00012876,2]
[60756,1714333887416,-500.0,0.00012876,2]
[60757,1714333887425,-649.78,0.00012876,2]
[60758,1714333887435,-500.0,0.00012876,2]
[60759,1714333887445,-500.0,0.00012876,2]
[60761,1714333887465,-500.0,0.00012876,2]
[60763,1714333887485,-500.0,0.00012876,2]
[60764,1714333887494,-500.0,0.00012876,2]
[60765,1714333887504,-500.0,0.00012876,2]
[60767,1714333887524,-500.0,0.00012876,2]
[60769,1714333887544,-500.0,0.00012876,2]
[60771,1714333887564,-211.34308272,0.00012876,2]
[60773,1714333887583,-500.0,0.00012876,2]
[60774,1714333887593,-500.0,0.00012876,2]
[60775,1714333887602,-500.0,0.00012876,2]
[60777,1714333887621,-1063.6,0.00012876,2]
[60779,1714333887641,-500.0,0.00012876,2]
[60781,1714333887661,-500.0,0.00012876,2]
[60783,1714333887680,-500.0,0.00012876,2]
[60785,1714333887701,-500.0,0.00012876,2]
[60787,1714333887721,-704.81,0.00012876,2]
[60789,1714333887741,-806.93,0.00012876,2]
[60791,1714333887761,-500.0,0.00012876,2]
[60792,1714333887771,-500.0,0.00012876,2]
[60793,1714333887781,-500.0,0.00012876,2]
[60795,1714333887801,-754.87,0.00012876,2]
[60796,1714333887811,-500.0,0.00012876,2]
[60797,1714333887821,-457.28,0.00012876,2]
[60798,1714333887832,-500.0,0.00012876,2]
[60799,1714333887843,-632.43,0.00012876,2]
[60801,1714333887863,-500.0,0.00012876,2]
[60802,1714333887874,-500.0,0.00012876,2]
[60803,1714333887884,-500.0,0.00012876,2]
[60805,1714333887904,-500.0,0.00012876,2]
[60806,1714333887915,-500.0,0.00012876,2]
[60807,1714333887924,-500.0,0.00012876,2]
[60808,1714333887935,-500.0,0.00012876,2]
[60809,1714333887946,-500.0,0.00012876,2]
[60810,1714333887956,-580.36,0.00012876,2]
[60811,1714333887966,-500.0,0.00012876,2]
[60812,1714333887976,-500.0,0.00012876,2]
[60813,1714333887986,-1209.6,0.00012876,2]
[60814,1714333887997,-500.0,0.00012876,2]
[60815,1714333888007,-500.0,0.00012876,2]
[60816,1714333888017,-500.0,0.00012876,2]
[60817,1714333888027,-500.0,0.00012876,2]
[60818,1714333888041,-500.0,0.00012876,2]
[60819,1714333888051,-500.0,0.00012876,2]
[60820,1714333888061,-500.0,0.00012876,2]
[60821,1714333888071,-500.0,0.00012876,2]
[60822,1714333888083,-500.0,0.00012876,2]
[60823,1714333888093,-500.0,0.00012876,2]
[60824,1714333888102,-612.8,0.00012876,2]
[60825,1714333888113,-500.0,0.00012876,2]
[60826,1714333888126,-500.0,0.00012876,2]
[60827,1714333888137,-500.0,0.00012876,2]
[60828,1714333888147,-500.0,0.00012876,2]
[60829,1714333888156,-500.0,0.00012876,2]
[60830,1714333888166,-500.0,0.00012876,2]
[60831,1714333888175,-718.62,0.00012876,2]
[60832,1714333888185,-500.0,0.00012876,2]
[60833,1714333888195,-749.09,0.00012876,2]
[60834,1714333888206,-500.0,0.00012876,2]
[60835,1714333888216,-228.86,0.00012876,2]
[60836,1714333888226,-500.0,0.00012876,2]
[60837,1714333888236,-519.1763017,0.00012876,2]
[60838,1714333888246,-500.0,0.00012876,2]
[60839,1714333888255,-500.0,0.00012876,2]
[60840,1714333888265,-546.77,0.00012876,2]
[60841,1714333888274,-651.61,0.00012876,2]
[60842,1714333888284,-500.0,0.00012876,2]
[60843,1714333888294,-596.5,0.00012876,2]
[60844,1714333888304,-500.0,0.00012876,2]
[60845,1714333888313,-500.0,0.00012876,2]
[60846,1714333888323,-177.11,0.00012876,2]
[60847,1714333888332,-500.0,0.00012876,2]
[60848,1714333888342,-509.59,0.00012876,2]
[60849,1714333888352,-500.0,0.00012876,2]
[60850,1714333888362,-817.82,0.00012876,2]
[60851,1714333888372,-500.0,0.00012876,2]
[60852,1714333888382,-500.0,0.00012876,2]
[60853,1714333888392,-500.0,0.00012876,2]
[60854,1714333888402,-500.0,0.00012876,2]
[60855,1714333888412,-313.62,0.00012876,2]
[60856,1714333888422,-500.0,0.00012876,2]
[60857,1714333888433,-500.0,0.00012876,2]
[60858,1714333888443,-500.0,0.00012876,2]
[60859,1714333888455,-784.15,0.00012876,2]
[60860,1714333888465,-980.94,0.00012876,2]
[60861,1714333888476,-500.0,0.00012876,2]
[60862,1714333888486,-732.51,0.00012876,2]
[60863,1714333888496,-229.45,0.00012876,2]
[60864,1714333888505,-500.0,0.00012876,2]
[60865,1714333888516,-683.63,0.00012876,2]
[60866,1714333888527,-500.0,0.00012876,2]
[60867,1714333888537,-500.0,0.00012876,2]
[60868,1714333888546,-500.0,0.00012876,2]
[60869,1714333888556,-500.0,0.00012876,2]
[60870,1714333888566,-500.0,0.00012876,2]
[60871,1714333888576,-500.0,0.00012876,2]
[60872,1714333888586,-500.0,0.00012876,2]
[60873,1714333888596,-500.0,0.00012876,2]
[60874,1714333888606,-500.0,0.00012876,2]
[60875,1714333888616,-500.0,0.00012876,2]
[60876,1714333888626,-913.73,0.00012876,2]
[60877,1714333888636,-500.0,0.00012876,2]
[60878,1714333888646,-500.0,0.00012876,2]
[60879,1714333888657,-500.0,0.00012876,2]
[60880,1714333888666,-500.0,0.00012876,2]
[60881,1714333888676,-500.0,0.00012876,2]
[60882,1714333888686,-500.0,0.00012876,2]
[60883,1714333888695,-500.0,0.00012876,2]
[60884,1714333888707,-500.0,0.00012876,2]
[60885,1714333888717,-500.0,0.00012876,2]
[60886,1714333888726,-651.82,0.00012876,2]
[60887,1714333888736,-970.58,0.00012876,2]
[60888,1714333888747,-500.0,0.00012876,2]
[60889,1714333888757,-500.0,0.00012876,2]
[60890,1714333888768,-634.81,0.00012876,2]
[60891,1714333888778,-1130.44,0.00012876,2]
[60892,1714333888788,-500.0,0.00012876,2]
[60893,1714333888797,-500.0,0.00012876,2]
[60894,1714333888808,-594.1,0.00012876,2]
[60895,1714333888818,-500.0,0.00012876,2]
[60896,1714333888828,-500.0,0.00012876,2]
[60897,1714333888838,-610.07,0.00012876,2]
[60898,1714333888848,-500.0,0.00012876,2]
[60899,1714333888858,-802.03,0.00012876,2]
[60900,1714333888868,-500.0,0.00012876,2]
[60901,1714333888877,-500.0,0.00012876,2]
[60902,1714333888887,-500.0,0.00012876,2]
[60903,1714333888897,-500.0,0.00012876,2]
[60904,1714333888907,-500.0,0.00012876,2]
[60905,1714333888916,-2244.82,0.00012876,2]
[60906,1714333888926,-841.44,0.00012876,2]
[60907,1714333888936,-500.0,0.00012876,2]
[60908,1714333888945,-500.0,0.00012876,2]
[60909,1714333888957,-256.71,0.00012876,2]
[60910,1714333888967,-643.85,0.00012876,2]
[60911,1714333888977,-500.0,0.00012876,2]
[60912,1714333888986,-500.0,0.00012876,2]
[60913,1714333888996,-598.88,0.00012876,2]
[60914,1714333889005,-1510.64,0.00012876,2]
[60915,1714333889015,-7836.77,0.00012876,2]
[60916,1714333889025,-500.0,0.00012876,2]
[60917,1714333889039,-161.72,0.00012876,2]
[60918,1714333889050,-3738.06,0.00012876,2]
[60919,1714333889059,-500.0,0.00012876,2]
[60920,1714333889069,-2120.38,0.00012876,2]
[60921,1714333889078,-500.0,0.00012876,2]
[60923,1714333889100,-930.99,0.00012876,2]
[60925,1714333889120,-500.0,0.00012876,2]
[60927,1714333889141,-552.44,0.00012876,2]
[60929,1714333889161,-851.63,0.00012876,2]
[60931,1714333889181,-956.01,0.00012876,2]
[60933,1714333889202,-935.48,0.00012876,2]
[60935,1714333889222,-500.0,0.00012876,2]
[60937,1714333889242,-1854.49,0.00012876,2]
[60939,1714333889262,-557.3,0.00012876,2]
[60941,1714333889283,-2438.98,0.00012876,2]
[60943,1714333889540,-500.0,0.00012876,2]
[60945,1714333889561,-3234.99,0.00012876,2]
[60947,1714333889580,-500.0,0.00012876,2]
[60949,1714333889600,-1439.84,0.00012876,2]
[60951,1714333889619,-2793.67,0.00012876,2]
[60953,1714333889640,-500.0,0.00012876,2]
[60955,1714333889660,-2433.94,0.00012876,2]
[60957,1714333889680,-500.0,0.00012876,2]
[60959,1714333889699,-7669.52,0.00012876,2]
[60961,1714333889724,-500.0,0.00012876,2]
[60963,1714333889746,-500.0,0.00012876,2]
[60965,1714333889767,-935.36,0.00012876,2]
[60967,1714333889786,-500.0,0.00012876,2]
[60969,1714333889807,-500.0,0.00012876,2]
[60971,1714333889827,-1295.23,0.00012876,2]
[60973,1714333889848,-1568.12,0.00012876,2]
[60975,1714333889868,-500.0,0.00012876,2]
[60977,1714333889888,-500.0,0.00012876,2]
[60979,1714333889909,-820.48,0.00012876,2]
[60981,1714333889929,-500.0,0.00012876,2]
[60983,1714333889950,-500.0,0.00012876,2]
[60985,1714333889969,-642.64,0.00012876,2]
[60987,1714333889989,-1549.96,0.00012876,2]
[60989,1714333890009,-686.14,0.00012876,2]
[60990,1714333890019,-500.0,0.00012876,2]
[60991,1714333890030,-500.0,0.00012876,2]
[60992,1714333890043,-500.0,0.00012876,2]
[60993,1714333890053,-500.0,0.00012876,2]
[60994,1714333890063,-1200.84,0.00012876,2]
[60995,1714333890072,-2087.69,0.00012876,2]
[60996,1714333890083,-736.19,0.00012876,2]
[60997,1714333890092,-1033.91,0.00012876,2]
[60998,1714333890103,-1078.64,0.00012876,2]
[60999,1714333890113,-500.0,0.00012876,2]
[61001,1714333890137,-507.87,0.00012876,2]
[61003,1714333890156,-1394.6,0.00012876,2]
[61005,1714333890175,-500.0,0.00012876,2]
[61007,1714333890194,-1383.26,0.00012876,2]
[61009,1714333890214,-1038.55,0.00012876,2]
[61011,1714333890234,-2363.73,0.00012876,2]
[61013,1714333890253,-535.33,0.00012876,2]
[61015,1714333890274,-581.73,0.00012876,2]
[61017,1714333890295,-519.27,0.00012876,2]
[61019,1714333890315,-802.45,0.00012876,2]
[61021,1714333890335,-500.0,0.00012876,2]
[61023,1714333890354,-500.0,0.00012876,2]
[61025,1714333890373,-500.0,0.00012876,2]
[61027,1714333890394,-500.0,0.00012876,2]
[61029,1714333890414,-500.0,0.00012876,2]
[61031,1714333890434,-500.0,0.00012876,2]
[61033,1714333890455,-500.0,0.00012876,2]
[61035,1714333890476,-1910.63,0.00012876,2]
[61037,1714333890496,-1435.69,0.00012876,2]
[61039,1714333890516,-500.0,0.00012876,2]
[61041,1714333890536,-500.0,0.00012876,2]
[61043,1714333890556,-877.24,0.00012876,2]
[61045,1714333890577,-2530.69,0.00012876,2]
[61046,1714333890587,-500.0,0.00012876,2]
[61047,1714333890596,-500.0,0.00012876,2]
[61048,1714333890606,-621.4,0.00012876,2]
[61049,1714333890616,-500.0,0.00012876,2]
[61050,1714333890625,-500.0,0.00012876,2]
[61051,1714333890635,-2915.48,0.00012876,2]
[61052,1714333890645,-1278.3,0.00012876,2]
[61053,1714333890655,-500.0,0.00012876,2]
[61054,1714333890665,-1146.85,0.00012876,2]
[61055,1714333890675,-500.0,0.00012876,2]
[61056,1714333890685,-337.55806935,0.00012876,2]
[61057,1714333890696,-500.0,0.00012876,2]
[61058,1714333890707,-763.84,0.00012876,2]
[61059,1714333890718,-3171.22,0.00012876,2]
[61060,1714333890728,-630.5,0.00012876,2]
[61061,1714333890738,-2674.38,0.00012876,2]
[61062,1714333890747,-533.75,0.00012876,2]
[61063,1714333890757,-2017.39,0.00012876,2]
[61064,1714333890766,-500.0,0.00012876,2]
[61065,1714333890776,-500.0,0.00012876,2]
[61066,1714333890786,-534.56,0.00012876,2]
[61067,1714333890796,-856.24,0.00012876,2]
[61068,1714333890805,-500.0,0.00012876,2]
[61069,1714333890814,-500.0,0.00012876,2]
[61070,1714333890824,-500.0,0.00012876,2]
[61071,1714333890834,-630.41,0.00012876,2]
[61072,1714333890844,-170.15,0.00012876,2]
[61073,1714333890853,-500.0,0.00012876,2]
[61074,1714333890863,-500.0,0.00012876,2]
[61075,1714333890872,-238.8,0.00012876,2]
[61076,1714333890881,-1121.09,0.00012876,2]
[61077,1714333890891,-978.42,0.00012876,2]
[61078,1714333890901,-657.57,0.00012876,2]
[61079,1714333890911,-500.0,0.00012876,2]
[61080,1714333890920,-500.0,0.00012876,2]
[61081,1714333890930,-8320.09,0.00012876,2]
[61082,1714333890940,-908.28,0.00012876,2]
[61083,1714333890951,-532.07,0.00012876,2]
[61084,1714333890960,-500.0,0.00012876,2]
[61085,1714333890970,-500.0,0.00012876,2]
[61086,1714333890980,-509.22,0.00012876,2]
[61087,1714333890990,-500.0,0.00012876,2]
[61088,1714333891000,-647.31,0.00012876,2]
[61089,1714333891010,-500.0,0.00012876,2]
[61090,1714333891020,-914.72,0.00012876,2]
[61091,1714333891030,-500.0,0.00012876,2]
[61092,1714333891044,-500.0,0.00012876,2]
[61093,1714333891054,-3853.58,0.00012876,2]
[61094,1714333891063,-942.92,0.00012876,2]
[61095,1714333891072,-673.74,0.00012876,2]
[61097,1714333891092,-705.71,0.00012876,2]
[61099,1714333891113,-382.4,0.00012894,2]
[61101,1714333891133,-369.01,0.00013131,2]
[61103,1714333891152,-500.0,0.0001315,2]
[61105,1714333891172,-513.94,0.0001315,2]
[61107,1714333891191,-500.0,0.0001315,2]
[61109,1714333891210,-500.0,0.0001315,2]
[61111,1714333891230,-416.96,0.0001315,2]
[61113,1714333891248,-515.27,0.0001315,2]
[61115,1714333891268,-500.0,0.0001315,2]
[61117,1714333891287,-500.0,0.0001315,2]
[61119,1714333891306,-500.0,0.0001315,2]
[61121,1714333891326,-500.0,0.0001315,2]
[61123,1714333891345,-500.0,0.0001315,2]
[61125,1714333891364,-500.0,0.0001315,2]
[61127,1714333891383,-500.0,0.0001315,2]
[61129,1714333891402,-500.0,0.0001315,2]
[61131,1714333891422,-500.0,0.0001315,2]
[61133,1714333891442,-500.0,0.0001315,2]
[61135,1714333891464,-500.0,0.0001315,2]
[61137,1714333891483,-500.0,0.0001315,2]
[61139,1714333891503,-500.0,0.0001315,2]
[61141,1714333891522,-500.0,0.0001315,2]
[61143,1714333891541,-500.0,0.0001315,2]